bitfinex-derivatives/quotes_BNBF0:USTF0_20250524
["timestamp","ask_amount","ask_price","bid_price","bid_amount"]
[1748064628032,0.43972598,668.54,667.64,1.1123956]
[1748064628226,0.43972598,668.53,667.64,1.1123956]
[1748064628524,0.43972598,668.52,667.64,1.1123956]
[1748064628730,0.43950237,668.51,667.64,1.1123956]
[1748064628932,0.43950237,668.5,667.64,1.1123956]
[1748064629131,0.43950237,668.49,667.64,1.1123956]
[1748064629330,1.48749039,668.55,667.64,1.1123956]
[1748064629531,0.4393983,668.54,667.64,1.1123956]
[1748064629831,0.4393983,668.53,667.64,1.1123956]
[1748064630033,1.48749039,668.55,667.64,1.1123956]
[1748064630034,0.4393983,668.52,667.64,1.1123956]
[1748064630228,0.4393983,668.51,667.64,1.1123956]
[1748064630433,0.4393983,668.5,667.64,1.1123956]
[1748064630633,0.43932928,668.49,667.64,1.1123956]
[1748064630829,0.43932928,668.48,667.64,1.1123956]
[1748064631027,1.48749039,668.62,667.64,1.1123956]
[1748064631028,0.43932928,668.47,667.64,1.1123956]
[1748064631228,0.43932928,668.46,667.64,1.1123956]
[1748064631531,0.43932928,668.45,667.64,1.1123956]
[1748064631731,0.43932928,668.44,667.64,1.1123956]
[1748064631928,0.43932928,668.43,667.64,1.1123956]
[1748064632132,0.43932928,668.42,667.64,1.1123956]
[1748064632328,0.43932928,668.41,667.64,1.1123956]
[1748064632533,1.48749039,668.62,667.64,1.1123956]
[1748064632733,0.43931784,668.61,667.64,1.1123956]
[1748064632934,0.43931784,668.6,667.51,1.1123956]
[1748064633230,1.48749039,668.61,667.51,1.1123956]
[1748064633535,0.43930088,668.6,667.51,1.1123956]
[1748064634131,0.43930856,668.59,667.51,1.1123956]
[1748064634330,0.43930856,668.58,667.51,1.1123956]
[1748064634530,0.43930856,668.57,667.51,1.1123956]
[1748064634729,0.43930856,668.56,667.51,1.1123956]
[1748064634934,1.92679895,668.55,667.47,1.1123956]
[1748064635135,0.43930856,668.54,667.47,1.1123956]
[1748064637238,0.43930856,668.54,667.43,1.1123956]
[1748064637433,0.43930856,668.53,667.43,1.1123956]
[1748064637631,0.43930856,668.52,667.43,1.1123956]
[1748064637830,0.43930856,668.51,667.43,1.1123956]
[1748064638034,0.43930856,668.5,667.43,1.1123956]
[1748064638334,0.43930856,668.49,667.43,1.1123956]
[1748064638531,0.43930856,668.48,667.43,1.1123956]
[1748064638834,0.43930856,668.47,667.43,1.1123956]
[1748064639034,0.43930856,668.46,667.43,1.1123956]
[1748064639234,0.43930856,668.45,667.43,1.1123956]
[1748064639437,0.43930856,668.44,667.43,1.1123956]
[1748064639638,0.43930856,668.43,667.44,1.1123956]
[1748064639832,0.43930856,668.42,667.44,1.1123956]
[1748064640036,0.43930856,668.41,667.44,1.1123956]
[1748064640236,0.43930856,668.4,667.44,1.1123956]
[1748064640538,1.48749039,668.62,667.44,1.1123956]
[1748064640732,0.43938236,668.61,667.44,1.1123956]
[1748064641035,0.43938236,668.6,667.44,1.1123956]
[1748064641236,0.43938236,668.59,667.44,1.1123956]
[1748064641437,0.43938236,668.58,667.44,1.1123956]
[1748064641737,0.43938236,668.57,667.44,1.1123956]
[1748064641933,1.92687275,668.56,667.51,1.1123956]
[1748064642136,0.43938236,668.55,667.51,1.1123956]
[1748064643241,0.43934779,668.54,667.51,1.1123956]
[1748064643440,0.43934779,668.53,667.51,1.1123956]
[1748064643640,0.43934779,668.52,667.51,1.1123956]
[1748064643841,0.43934779,668.51,667.51,1.1123956]
[1748064644141,0.43934779,668.5,667.57,1.1123956]
[1748064644335,0.43934779,668.49,667.57,1.1123956]
[1748064644540,0.43934779,668.48,667.57,1.1123956]
[1748064644739,1.48749039,668.62,667.57,1.1123956]
[1748064644740,0.43934779,668.47,667.57,1.1123956]
[1748064644935,1.48749039,668.62,667.57,1.1123956]
[1748064645141,0.43931731,668.61,667.57,1.1123956]
[1748064645342,0.43931731,668.6,667.57,1.1123956]
[1748064645536,0.43931731,668.59,667.57,1.1123956]
[1748064645737,0.43931731,668.58,667.57,1.1123956]
[1748064645941,0.43931731,668.57,667.57,1.1123956]
[1748064646142,0.43931731,668.56,667.57,1.1123956]
[1748064646342,0.43931731,668.55,667.57,1.1123956]
[1748064646541,0.43931731,668.54,667.57,1.1123956]
[1748064646841,0.43931731,668.53,667.57,1.1123956]
[1748064647038,0.43931731,668.52,667.57,1.1123956]
[1748064647341,0.43931731,668.51,667.58,1.1123956]
[1748064647541,0.43931731,668.5,667.58,1.1123956]
[1748064647737,0.43931731,668.49,667.58,1.1123956]
[1748064647938,0.43931731,668.48,667.58,1.1123956]
[1748064648137,0.43931731,668.47,667.58,1.1123956]
[1748064648343,1.48749039,668.65,667.58,1.1123956]
[1748064648542,0.43932574,668.64,667.58,1.1123956]
[1748064648840,0.43932351,668.63,667.58,1.1123956]
[1748064649039,0.43932351,668.62,667.58,1.1123956]
[1748064649244,0.43932351,668.61,667.58,1.1123956]
[1748064649540,0.43932351,668.6,667.59,1.1123956]
[1748064649746,0.43932351,668.59,667.59,1.1123956]
[1748064649944,0.43932351,668.58,667.59,1.1123956]
[1748064650140,1.48749039,668.64,667.59,1.1123956]
[1748064650141,0.43932351,668.57,667.59,1.1123956]
[1748064650339,0.43932351,668.56,667.59,1.1123956]
[1748064650640,0.43936534,668.55,667.59,1.1123956]
[1748064650839,0.43936534,668.54,667.59,1.1123956]
[1748064651039,0.43936534,668.53,667.59,1.1123956]
[1748064651244,0.43936534,668.52,667.59,1.1123956]
[1748064651441,0.43936534,668.51,667.59,1.1123956]
[1748064651646,0.43936534,668.5,667.59,1.1123956]
[1748064651847,0.43936534,668.49,667.58,1.1123956]
[1748064652046,0.43936534,668.48,667.58,1.1123956]
[1748064652246,0.43944185,668.47,667.58,1.1123956]
[1748064652446,0.43944185,668.46,667.58,1.1123956]
[1748064652746,0.43944185,668.45,667.58,1.1123956]
[1748064652950,0.43944772,668.44,667.58,1.1123956]
[1748064653148,0.43944772,668.43,667.58,1.1123956]
[1748064653347,0.43944772,668.42,667.58,1.1123956]
[1748064653547,0.43944772,668.41,667.58,1.1123956]
[1748064653748,1.48749039,668.59,667.58,1.1123956]
[1748064653948,0.43953031,668.58,667.58,1.1123956]
[1748064654150,1.48749039,668.55,667.56,1.1123956]
[1748064654346,0.43953031,668.54,667.56,1.1123956]
[1748064656351,1.48749039,668.53,667.56,1.1123956]
[1748064656547,0.43953031,668.52,667.56,1.1123956]
[1748064657654,0.43981325,668.51,667.56,1.1123956]
[1748064657851,0.43981325,668.5,667.56,1.1123956]
[1748064658049,0.43981325,668.49,667.56,1.1123956]
[1748064658253,0.43981325,668.48,667.56,1.1123956]
[1748064658449,0.43981325,668.47,667.56,1.1123956]
[1748064658648,0.43981325,668.46,667.56,1.1123956]
[1748064658852,0.43981325,668.45,667.56,1.1123956]
[1748064659054,0.43981325,668.44,667.56,1.1123956]
[1748064659251,0.43981325,668.43,667.56,1.1123956]
[1748064659451,0.44000244,668.42,667.56,1.1123956]
[1748064659647,0.44000244,668.41,667.56,1.1123956]
[1748064659852,0.44000244,668.4,667.56,1.1123956]
[1748064660052,0.44000244,668.39,667.56,1.1123956]
[1748064660248,0.44000244,668.38,667.56,1.1123956]
[1748064660453,1.48749039,668.54,667.56,1.1123956]
[1748064660654,0.44005226,668.53,667.56,1.1123956]
[1748064660853,2.21733955,668.68,666.73,3.42407985]
[1748064660854,1.92754265,668.52,667.58,1.1123956]
[1748064661049,0.44005254,668.51,667.58,1.1123956]
[1748064661250,0.44005254,668.5,667.58,1.1123956]
[1748064661450,0.44005254,668.49,667.58,1.1123956]
[1748064661650,0.44005254,668.48,667.58,1.1123956]
[1748064661850,1.48749039,668.52,667.58,1.1123956]
[1748064661851,0.44005254,668.47,667.58,1.1123956]
[1748064662055,0.44005254,668.46,667.58,1.1123956]
[1748064662255,0.44005254,668.45,667.58,1.1123956]
[1748064662457,0.44005254,668.44,667.58,1.1123956]
[1748064662657,0.44005254,668.43,667.58,1.1123956]
[1748064662857,0.44005254,668.42,667.58,1.1123956]
[1748064663058,0.44005254,668.41,667.58,1.1123956]
[1748064663256,1.48749039,668.52,666.73,3.42407985]
[1748064663257,0.44005254,668.4,667.61,1.1123956]
[1748064663456,0.44005254,668.39,667.61,1.1123956]
[1748064663656,0.44005254,668.38,667.61,1.1123956]
[1748064663952,0.44005254,668.37,667.61,1.1123956]
[1748064664154,0.44005254,668.36,667.61,1.1123956]
[1748064664357,0.44005254,668.35,667.61,1.1123956]
[1748064664553,0.44058671,668.34,667.61,1.1123956]
[1748064664755,1.48749039,668.48,667.61,1.1123956]
[1748064664955,0.44053854,668.47,667.61,1.1123956]
[1748064665155,0.44053854,668.46,667.61,1.1123956]
[1748064665355,0.44053854,668.45,667.61,1.1123956]
[1748064665555,0.44053854,668.44,667.61,1.1123956]
[1748064665755,0.44053854,668.43,667.61,1.1123956]
[1748064665960,0.44053854,668.42,667.61,1.1123956]
[1748064666162,0.44053854,668.41,667.61,1.1123956]
[1748064666362,0.44053854,668.4,667.57,1.1123956]
[1748064666564,1.48749039,668.57,667.57,1.1123956]
[1748064666565,0.44053854,668.39,667.57,1.1123956]
[1748064666858,0.44053854,668.38,667.57,1.1123956]
[1748064667061,0.44053854,668.37,667.57,1.1123956]
[1748064667264,0.44053854,668.36,667.57,1.1123956]
[1748064667465,0.44053854,668.35,667.57,1.1123956]
[1748064667764,0.44053854,668.34,667.57,1.1123956]
[1748064667966,0.44088234,668.33,667.57,1.1123956]
[1748064668159,0.44088234,668.32,667.57,1.1123956]
[1748064668361,0.44095507,668.31,667.57,1.1123956]
[1748064668560,1.48749039,668.57,667.57,1.1123956]
[1748064668761,1.92844677,668.56,667.59,1.1123956]
[1748064668965,0.44095638,668.55,667.59,1.1123956]
[1748064669167,0.44095638,668.54,667.59,1.1123956]
[1748064669363,0.44095638,668.53,667.59,1.1123956]
[1748064669561,0.44095638,668.52,667.59,1.1123956]
[1748064669761,0.44103642,668.51,667.59,1.1123956]
[1748064669962,0.44103642,668.5,667.59,1.1123956]
[1748064670164,0.44103642,668.49,667.59,1.1123956]
[1748064670365,0.44103642,668.48,667.59,1.1123956]
[1748064670565,0.44103642,668.47,667.59,1.1123956]
[1748064670766,0.44103642,668.46,667.59,1.1123956]
[1748064670966,0.44103642,668.45,667.59,1.1123956]
[1748064671167,0.44158507,668.44,667.59,1.1123956]
[1748064671466,0.44158507,668.43,667.59,1.1123956]
[1748064671665,0.44158507,668.42,667.59,1.1123956]
[1748064671864,0.44158507,668.41,667.59,1.1123956]
[1748064672065,0.44158507,668.4,667.59,1.1123956]
[1748064672264,0.44158507,668.39,667.59,1.1123956]
[1748064672562,0.44158507,668.38,667.59,1.1123956]
[1748064672763,0.44158507,668.37,667.59,1.1123956]
[1748064673065,0.44158507,668.36,667.61,1.1123956]
[1748064673261,0.44158507,668.35,667.61,1.1123956]
[1748064673464,0.44181524,668.34,667.61,1.1123956]
[1748064673663,0.44181524,668.33,667.61,1.1123956]
[1748064673869,0.44181524,668.32,667.61,1.1123956]
[1748064674069,0.44181524,668.31,667.61,1.1123956]
[1748064674268,0.44181524,668.3,667.61,1.1123956]
[1748064674566,0.44181524,668.29,667.61,1.1123956]
[1748064674766,0.44181524,668.28,667.61,1.1123956]
[1748064674966,0.44181524,668.27,667.61,1.1123956]
[1748064675168,1.48749039,668.53,667.61,1.1123956]
[1748064675369,0.44197619,668.52,667.61,1.1123956]
[1748064675564,0.44197619,668.51,667.61,1.1123956]
[1748064675768,1.48749039,668.43,667.67,1.1123956]
[1748064676068,0.44197619,668.42,667.67,1.1123956]
[1748064676268,0.44197619,668.41,667.67,1.1123956]
[1748064676468,0.44197619,668.4,667.67,1.1123956]
[1748064676665,1.48749039,668.43,667.67,1.1123956]
[1748064676864,0.44193787,668.42,667.67,1.1123956]
[1748064677163,0.44193787,668.41,667.67,1.1123956]
[1748064677364,0.44193787,668.4,667.67,1.1123956]
[1748064677567,1.48749039,668.43,667.67,1.1123956]
[1748064677767,0.44194822,668.42,667.67,1.1123956]
[1748064677965,0.44194822,668.41,667.67,1.1123956]
[1748064678167,0.44194822,668.4,667.79,1.1123956]
[1748064678367,1.48749039,668.61,667.79,1.1123956]
[1748064678564,0.44193483,668.6,667.79,1.1123956]
[1748064678769,0.44193515,668.59,667.79,1.1123956]
[1748064678965,0.44193515,668.58,667.79,1.1123956]
[1748064679166,0.44193515,668.57,667.79,1.1123956]
[1748064679367,0.44193515,668.56,667.79,1.1123956]
[1748064679565,0.44193515,668.55,667.79,1.1123956]
[1748064679768,0.44193515,668.54,667.79,1.1123956]
[1748064679965,0.44193515,668.53,667.79,1.1123956]
[1748064680166,0.44193515,668.52,667.79,1.1123956]
[1748064680370,0.44193515,668.51,667.79,1.1123956]
[1748064680572,0.44257219,668.5,667.79,1.1123956]
[1748064680765,0.44257219,668.49,667.79,1.1123956]
[1748064680970,0.44257219,668.48,667.81,1.1123956]
[1748064681172,0.44257219,668.47,667.81,1.1123956]
[1748064681472,0.44257219,668.46,667.81,1.1123956]
[1748064681665,0.44257219,668.45,667.81,1.1123956]
[1748064681869,0.44257219,668.44,667.81,1.1123956]
[1748064682069,0.44257219,668.43,667.81,1.1123956]
[1748064682271,0.44257219,668.42,667.81,1.1123956]
[1748064682473,0.44257219,668.41,667.81,1.1123956]
[1748064682673,1.48749039,668.57,667.81,1.1123956]
[1748064682869,0.44249226,668.56,667.81,1.1123956]
[1748064683070,0.44249226,668.55,667.8,1.1123956]
[1748064683270,0.44249226,668.54,667.8,1.1123956]
[1748064683467,0.44249226,668.53,667.8,1.1123956]
[1748064683671,0.44249226,668.52,667.8,1.1123956]
[1748064683873,0.442434,668.51,667.8,1.1123956]
[1748064684068,1.48749039,668.57,667.8,1.1123956]
[1748064684273,0.44241472,668.56,667.8,1.1123956]
[1748064684473,0.44241472,668.55,667.8,1.1123956]
[1748064684773,0.44241472,668.54,667.8,1.1123956]
[1748064685074,0.44241472,668.53,667.8,1.1123956]
[1748064685274,0.44241472,668.52,667.8,1.1123956]
[1748064685470,1.48749039,668.57,666.88,3.42407985]
[1748064685471,0.44241472,668.51,667.81,1.1123956]
[1748064685674,0.44241472,668.5,667.81,1.1123956]
[1748064685873,0.44241472,668.49,667.81,1.1123956]
[1748064686070,0.44241472,668.48,667.81,1.1123956]
[1748064686274,1.48749039,668.7,667.81,1.1123956]
[1748064686471,0.44219062,668.69,667.81,1.1123956]
[1748064686773,0.44219062,668.68,667.81,1.1123956]
[1748064687074,0.44219062,668.67,667.81,1.1123956]
[1748064687271,0.44219062,668.66,667.81,1.1123956]
[1748064687472,0.44219062,668.65,667.81,1.1123956]
[1748064687671,0.44219062,668.64,667.81,1.1123956]
[1748064687871,0.44213061,668.63,667.81,1.1123956]
[1748064688070,0.44213061,668.62,667.81,1.1123956]
[1748064688276,0.44213061,668.61,667.81,1.1123956]
[1748064688476,0.44213061,668.6,667.81,1.1123956]
[1748064688677,0.44213061,668.59,667.81,1.1123956]
[1748064688876,0.44213061,668.58,667.81,1.1123956]
[1748064689077,0.44213061,668.57,667.81,1.1123956]
[1748064689278,0.44213061,668.56,667.81,1.1123956]
[1748064689478,0.44213061,668.55,667.81,1.1123956]
[1748064689671,0.44202331,668.54,667.81,1.1123956]
[1748064689873,0.44202331,668.53,667.81,1.1123956]
[1748064690074,0.44202331,668.52,667.81,1.1123956]
[1748064690277,0.44202331,668.51,667.81,1.1123956]
[1748064690472,0.44202331,668.5,667.81,1.1123956]
[1748064690673,1.48749039,668.71,667.81,1.1123956]
[1748064690878,0.44197501,668.7,667.81,1.1123956]
[1748064691075,0.44197501,668.69,667.8,1.1123956]
[1748064691274,0.44197501,668.68,667.8,1.1123956]
[1748064691480,0.44192895,668.67,667.8,1.1123956]
[1748064691775,0.44192895,668.66,667.8,1.1123956]
[1748064691980,0.44192895,668.65,667.8,1.1123956]
[1748064692179,0.44192895,668.64,667.8,1.1123956]
[1748064692373,0.44192895,668.63,667.8,1.1123956]
[1748064692575,0.44192895,668.62,667.8,1.1123956]
[1748064692777,0.44192895,668.61,667.8,1.1123956]
[1748064692980,0.44192895,668.6,667.8,1.1123956]
[1748064693180,0.44188949,668.59,667.79,1.1123956]
[1748064693480,0.44188949,668.58,667.79,1.1123956]
[1748064693676,0.44188949,668.57,667.79,1.1123956]
[1748064693877,0.44188949,668.56,667.79,1.1123956]
[1748064694082,0.44188949,668.55,667.79,1.1123956]
[1748064694278,0.44188949,668.54,667.79,1.1123956]
[1748064694478,0.441841,668.53,667.79,1.1123956]
[1748064694677,0.441841,668.52,667.79,1.1123956]
[1748064694877,0.441841,668.51,667.79,1.1123956]
[1748064695080,1.48749039,668.72,667.79,1.1123956]
[1748064695280,0.44184092,668.71,667.79,1.1123956]
[1748064695482,0.44184092,668.7,667.79,1.1123956]
[1748064695682,0.44184092,668.69,667.79,1.1123956]
[1748064695979,0.44184092,668.68,667.79,1.1123956]
[1748064696181,0.44184092,668.67,667.79,1.1123956]
[1748064696382,1.48749039,668.6,667.86,1.1123956]
[1748064696679,0.44184092,668.59,667.86,1.1123956]
[1748064696985,0.44183125,668.58,667.86,1.1123956]
[1748064697183,0.44183125,668.57,667.86,1.1123956]
[1748064697384,0.44183125,668.56,667.86,1.1123956]
[1748064697585,0.44183125,668.55,667.86,1.1123956]
[1748064697779,0.44183125,668.54,667.86,1.1123956]
[1748064697982,0.44183125,668.53,667.86,1.1123956]
[1748064698281,0.44183125,668.52,667.86,1.1123956]
[1748064698482,0.44183125,668.51,667.86,1.1123956]
[1748064698684,1.48749039,668.6,667.86,1.1123956]
[1748064698887,0.44183913,668.59,667.86,1.1123956]
[1748064699079,0.44183913,668.58,667.86,1.1123956]
[1748064699283,0.44183913,668.57,667.86,1.1123956]
[1748064699480,0.44183913,668.56,667.86,1.1123956]
[1748064699679,0.44183913,668.55,667.86,1.1123956]
[1748064699885,0.44183913,668.54,667.86,1.1123956]
[1748064700185,0.44183913,668.53,667.86,1.1123956]
[1748064700381,1.48749039,668.6,667.86,1.1123956]
[1748064700382,0.44183913,668.52,667.86,1.1123956]
[1748064700586,0.44183913,668.51,667.86,1.1123956]
[1748064700788,1.48749039,668.6,667.86,1.1123956]
[1748064701086,0.44183913,668.59,667.86,1.1123956]
[1748064701281,0.44183913,668.58,667.86,1.1123956]
[1748064701482,0.44183913,668.57,667.86,1.1123956]
[1748064701685,0.44183913,668.56,667.86,1.1123956]
[1748064701885,0.44183913,668.55,667.79,1.1123956]
[1748064702086,0.44183913,668.54,667.79,1.1123956]
[1748064702284,0.44185709,668.53,667.79,1.1123956]
[1748064702482,0.44185709,668.52,667.79,1.1123956]
[1748064702688,0.44185709,668.51,667.79,1.1123956]
[1748064702988,0.44185709,668.5,667.79,1.1123956]
[1748064703285,0.44185709,668.49,667.79,1.1123956]
[1748064703584,0.44185709,668.48,667.79,1.1123956]
[1748064703786,1.48749039,668.72,667.79,1.1123956]
[1748064703787,0.44185709,668.47,667.79,1.1123956]
[1748064703985,1.48749039,668.73,667.72,1.1123956]
[1748064704186,0.44187918,668.72,667.72,1.1123956]
[1748064704488,0.44187918,668.71,667.72,1.1123956]
[1748064704688,0.44187918,668.7,667.72,1.1123956]
[1748064704888,0.44187918,668.69,667.72,1.1123956]
[1748064705085,0.44187918,668.68,667.72,1.1123956]
[1748064705284,0.44187918,668.67,667.72,1.1123956]
[1748064705489,0.44187918,668.66,667.72,1.1123956]
[1748064705690,0.44187918,668.65,667.72,1.1123956]
[1748064705887,0.44183155,668.64,667.72,1.1123956]
[1748064706090,0.44183155,668.63,667.7,1.1123956]
[1748064706286,0.44183155,668.62,667.7,1.1123956]
[1748064706491,0.44183155,668.61,667.7,1.1123956]
[1748064706693,0.44183155,668.6,667.7,1.1123956]
[1748064706991,0.44183155,668.59,667.7,1.1123956]
[1748064707287,0.44183155,668.58,667.7,1.1123956]
[1748064707587,0.44183155,668.57,667.7,1.1123956]
[1748064707890,0.44183155,668.56,667.7,1.1123956]
[1748064708085,0.44183155,668.55,667.7,1.1123956]
[1748064708285,0.44183155,668.54,667.71,1.1123956]
[1748064708491,0.44183155,668.53,667.71,1.1123956]
[1748064708691,0.44183155,668.52,667.71,1.1123956]
[1748064708892,0.44183155,668.51,667.71,1.1123956]
[1748064709088,0.44183155,668.5,667.71,1.1123956]
[1748064709389,0.44183155,668.49,667.71,1.1123956]
[1748064709593,0.44183155,668.48,667.71,1.1123956]
[1748064709894,0.44183155,668.47,667.7,1.1123956]
[1748064710087,0.44183155,668.46,667.7,1.1123956]
[1748064710289,0.44183155,668.45,667.7,1.1123956]
[1748064710489,0.44183155,668.44,667.7,1.1123956]
[1748064710690,1.48749039,668.67,667.7,1.1123956]
[1748064710893,0.44185784,668.66,667.7,1.1123956]
[1748064711088,0.44185784,668.65,667.7,1.1123956]
[1748064711289,0.44185784,668.64,667.7,1.1123956]
[1748064711489,0.44185784,668.63,667.7,1.1123956]
[1748064711692,0.44185784,668.62,667.71,1.1123956]
[1748064711890,0.44185784,668.61,667.71,1.1123956]
[1748064712094,0.44185784,668.6,667.71,1.1123956]
[1748064712295,0.44185784,668.59,667.71,1.1123956]
[1748064712493,0.44185784,668.58,667.71,1.1123956]
[1748064712693,0.44185784,668.57,667.71,1.1123956]
[1748064712895,0.44185784,668.56,667.71,1.1123956]
[1748064713194,0.44185784,668.55,667.71,1.1123956]
[1748064713395,0.44185784,668.54,667.71,1.1123956]
[1748064713594,0.44185784,668.53,667.71,1.1123956]
[1748064713894,0.44185784,668.52,667.71,1.1123956]
[1748064714088,0.44185784,668.51,667.71,1.1123956]
[1748064714293,0.44185784,668.5,667.79,1.1123956]
[1748064716896,0.44185784,668.5,667.73,1.1123956]
[1748064717098,0.44185784,668.49,667.73,1.1123956]
[1748064717300,0.44185784,668.48,667.73,1.1123956]
[1748064717495,0.44185784,668.47,667.73,1.1123956]
[1748064717700,0.44199028,668.46,667.73,1.1123956]
[1748064718001,0.44199028,668.45,667.73,1.1123956]
[1748064718199,0.44199028,668.44,667.73,1.1123956]
[1748064718399,1.48749039,668.65,667.73,1.1123956]
[1748064718599,0.44202093,668.64,667.73,1.1123956]
[1748064718793,0.44202093,668.63,667.73,1.1123956]
[1748064718998,0.44202093,668.62,667.73,1.1123956]
[1748064719199,0.44202093,668.61,667.73,1.1123956]
[1748064719400,0.44202093,668.6,667.74,1.1123956]
[1748064719600,0.44202093,668.59,667.74,1.1123956]
[1748064719801,0.44202093,668.58,667.74,1.1123956]
[1748064720102,0.44202093,668.57,667.74,1.1123956]
[1748064720300,0.44202093,668.56,667.74,1.1123956]
[1748064720504,0.44202093,668.55,667.74,1.1123956]
[1748064720702,0.44202093,668.54,667.74,1.1123956]
[1748064720901,0.44202093,668.53,667.74,1.1123956]
[1748064721101,1.48749039,668.66,667.74,1.1123956]
[1748064721102,0.44202093,668.52,667.74,1.1123956]
[1748064721302,0.44202093,668.51,667.75,1.1123956]
[1748064721495,1.48749039,668.62,667.75,1.1123956]
[1748064721701,0.44205444,668.61,667.75,1.1123956]
[1748064721898,0.44205444,668.6,667.75,1.1123956]
[1748064722094,0.44205444,668.59,667.75,1.1123956]
[1748064722300,0.44205444,668.58,667.75,1.1123956]
[1748064722499,0.44205444,668.57,667.75,1.1123956]
[1748064722698,0.44205444,668.56,667.75,1.1123956]
[1748064722898,0.44205444,668.55,667.75,1.1123956]
[1748064723101,0.44205444,668.54,667.75,1.1123956]
[1748064723305,0.44219895,668.53,667.75,1.1123956]
[1748064723503,0.44219895,668.52,667.75,1.1123956]
[1748064723704,0.44219895,668.51,667.74,1.1123956]
[1748064723904,0.44219895,668.5,667.74,1.1123956]
[1748064724103,0.44219895,668.49,667.74,1.1123956]
[1748064724305,0.44219895,668.48,667.74,1.1123956]
[1748064724603,0.44219895,668.47,667.74,1.1123956]
[1748064724799,0.44219895,668.46,667.74,1.1123956]
[1748064725004,0.44219895,668.45,667.74,1.1123956]
[1748064725206,0.44219895,668.44,667.74,1.1123956]
[1748064725407,0.44219895,668.43,667.74,1.1123956]
[1748064725708,0.44219895,668.42,667.74,1.1123956]
[1748064725908,0.44229542,668.41,667.78,1.1123956]
[1748064726104,1.48749039,668.58,667.78,1.1123956]
[1748064726307,0.44229949,668.57,667.78,1.1123956]
[1748064726506,0.44229949,668.56,667.78,1.1123956]
[1748064726707,0.44229949,668.55,667.78,1.1123956]
[1748064726904,1.48749039,668.58,667.78,1.1123956]
[1748064727104,0.44235725,668.57,667.78,1.1123956]
[1748064727307,0.44235725,668.56,667.78,1.1123956]
[1748064727509,0.44235725,668.55,667.78,1.1123956]
[1748064727709,0.44235725,668.54,667.78,1.1123956]
[1748064728008,0.44235725,668.53,667.78,1.1123956]
[1748064728305,0.44235725,668.52,667.73,1.1123956]
[1748064728510,0.44235725,668.51,667.73,1.1123956]
[1748064728705,1.48749039,668.53,667.73,1.1123956]
[1748064728914,0.44249378,668.52,667.73,1.1123956]
[1748064729110,0.44249378,668.51,667.73,1.1123956]
[1748064729304,0.44249378,668.5,667.73,1.1123956]
[1748064729508,0.44249378,668.49,667.73,1.1123956]
[1748064729709,0.44249378,668.48,667.73,1.1123956]
[1748064730006,0.44249378,668.47,667.73,1.1123956]
[1748064730205,0.44249378,668.46,667.73,1.1123956]
[1748064730405,0.44249378,668.45,667.73,1.1123956]
[1748064730710,0.4424799,668.44,667.73,1.1123956]
[1748064731011,1.48749039,668.39,667.68,1.1123956]
[1748064731406,0.44250508,668.38,667.68,1.1123956]
[1748064731607,0.44250508,668.37,667.68,1.1123956]
[1748064731805,0.44250508,668.36,667.68,1.1123956]
[1748064732008,0.44250508,668.35,667.68,1.1123956]
[1748064732207,0.44250508,668.34,667.68,1.1123956]
[1748064732409,0.44250508,668.33,667.68,1.1123956]
[1748064732609,0.44250508,668.32,667.68,1.1123956]
[1748064732810,0.44250508,668.31,667.68,1.1123956]
[1748064733012,0.44250508,668.3,667.68,1.1123956]
[1748064733208,1.48749039,668.28,667.58,1.1123956]
[1748064733409,0.44250508,668.27,667.58,1.1123956]
[1748064733613,0.44250508,668.26,667.58,1.1123956]
[1748064733912,0.44250508,668.25,667.58,1.1123956]
[1748064734110,0.44250508,668.24,667.58,1.1123956]
[1748064734408,0.44250508,668.23,667.58,1.1123956]
[1748064734608,0.44250508,668.22,667.58,1.1123956]
[1748064734810,0.44250508,668.21,667.58,1.1123956]
[1748064735008,0.44250508,668.2,667.58,1.1123956]
[1748064735212,0.44250508,668.19,667.58,1.1123956]
[1748064735414,0.44250508,668.18,667.58,1.1123956]
[1748064735614,0.44250508,668.17,667.58,1.1123956]
[1748064735915,0.44250508,668.16,667.58,1.1123956]
[1748064736115,0.44250508,668.15,667.58,1.1123956]
[1748064736413,0.44250508,668.14,667.58,1.1123956]
[1748064736614,1.48749039,668.21,667.45,1.1123956]
[1748064736814,0.44174557,668.2,667.45,1.1123956]
[1748064737014,0.44174557,668.19,667.45,1.1123956]
[1748064737213,0.44174557,668.18,667.45,1.1123956]
[1748064737415,0.44174557,668.17,667.45,1.1123956]
[1748064737617,0.44174557,668.16,667.45,1.1123956]
[1748064737910,1.48749039,668.21,667.45,1.1123956]
[1748064738114,0.44157687,668.2,667.45,1.1123956]
[1748064738314,0.44157687,668.19,667.45,1.1123956]
[1748064738516,0.44157687,668.18,667.45,1.1123956]
[1748064738714,0.44157687,668.17,667.45,1.1123956]
[1748064738909,1.48749039,668.21,667.45,1.1123956]
[1748064739109,0.44143306,668.2,667.45,1.1123956]
[1748064739311,0.44143306,668.19,667.36,1.1123956]
[1748064739614,0.44130262,668.18,667.36,1.1123956]
[1748064739915,1.48749039,668.36,667.36,1.1123956]
[1748064740115,0.44130262,668.35,667.36,1.1123956]
[1748064740315,0.44130262,668.34,667.36,1.1123956]
[1748064740510,0.44130262,668.33,667.36,1.1123956]
[1748064740712,0.44130262,668.32,667.36,1.1123956]